[Event "January 2 Late 2024"]
[Site "https://www.chess.com"]
[Date "2024.01.02"]
[Round "4"]
[White "Vujacic, Igor"]
[Black "Yushko, Olga"]
[Result "0-1"]
[Board "182"]
[TimeControl "180+1"]
[WhiteFideId "932620"]
[BlackFideId "14114500"]
[WhiteElo "2445"]
[BlackElo "2194"]
[WhiteTeam "MNE"]
[BlackTeam "UKR"]
[WhiteClock "0:00:00"]
[BlackClock "0:00:06"]

1. d4 {[%clk 0:03:00]}  e6 {[%clk 0:02:59]} 2. Nf3 {[%clk 0:03:00]}  f5 {[%clk 0:02:59]} 3. h3 {[%clk 0:02:57]}  Nf6 {[%clk 0:02:59]} 4. Bf4 {[%clk 0:02:55]}  Be7 {[%clk 0:02:59]} 5. e3 {[%clk 0:02:55]}  O-O {[%clk 0:02:59]} 6. Bd3 {[%clk 0:02:56]}  d6 {[%clk 0:02:59]} 7. g4 {[%clk 0:02:56]}  Ne4 {[%clk 0:02:46]} 8. Nbd2 {[%clk 0:02:54]}  g5 {[%clk 0:02:34]} 9. Bh2 {[%clk 0:02:40]}  Nxd2 {[%clk 0:02:00]} 10. Nxd2 {[%clk 0:02:35]}  f4 {[%clk 0:01:56]} 11. exf4 {[%clk 0:02:29]}  gxf4 {[%clk 0:01:56]} 12. Qe2 {[%clk 0:02:26]}  Nc6 {[%clk 0:01:51]} 13. c3 {[%clk 0:02:25]}  Bh4 {[%clk 0:01:43]} 14. O-O-O {[%clk 0:02:19]}  e5 {[%clk 0:01:38]} 15. Nf3 {[%clk 0:02:09]}  exd4 {[%clk 0:01:33]} 16. Qe4 {[%clk 0:01:59]}  Rf7 {[%clk 0:01:20]} 17. Bc4 {[%clk 0:01:58]}  Ne5 {[%clk 0:00:09]} 18. Nxe5 {[%clk 0:01:29]}  dxe5 {[%clk 0:00:10]} 19. Bxf7+ {[%clk 0:01:23]}  Kg7 {[%clk 0:00:10]} 20. Qxh7+ {[%clk 0:01:23]}  Kxh7 {[%clk 0:00:10]} 21. Bc4 {[%clk 0:01:20]}  Qf6 {[%clk 0:00:10]} 22. f3 {[%clk 0:01:12]}  Bd7 {[%clk 0:00:10]} 23. Bg1 {[%clk 0:01:00]}  Bc6 {[%clk 0:00:09]} 24. Be2 {[%clk 0:00:57]}  dxc3 {[%clk 0:00:09]} 25. bxc3 {[%clk 0:00:57]}  Rd8 {[%clk 0:00:09]} 26. Rh2 {[%clk 0:00:52]}  Rxd1+ {[%clk 0:00:09]} 27. Bxd1 {[%clk 0:00:53]}  e4 {[%clk 0:00:09]} 28. Bd4 {[%clk 0:00:48]}  Qe7 {[%clk 0:00:07]} 29. Bc2 {[%clk 0:00:43]}  Kh6 {[%clk 0:00:05]} 30. fxe4 {[%clk 0:00:42]}  Bxe4 {[%clk 0:00:05]} 31. Re2 {[%clk 0:00:32]}  Qa3+ {[%clk 0:00:05]} 32. Kb1 {[%clk 0:00:32]}  Bxc2+ {[%clk 0:00:05]} 33. Rxc2 {[%clk 0:00:33]}  f3 {[%clk 0:00:04]} 34. Rb2 {[%clk 0:00:19]}  c5 {[%clk 0:00:04]} 35. Be3+ {[%clk 0:00:19]}  Kg6 {[%clk 0:00:02]} 36. Rb3 {[%clk 0:00:12]}  Qa6 {[%clk 0:00:02]} 37. Bxc5 {[%clk 0:00:08]}  Qf1+ {[%clk 0:00:03]} 38. Kb2 {[%clk 0:00:08]}  Qe2+ {[%clk 0:00:04]} 39. Ka3 {[%clk 0:00:07]}  f2 {[%clk 0:00:05]} 40. Bxf2 {[%clk 0:00:07]}  Qxf2 {[%clk 0:00:05]} 41. Rxb7 {[%clk 0:00:07]}  Qc5+ {[%clk 0:00:05]} 42. Kb2 {[%clk 0:00:06]}  Qf2+ {[%clk 0:00:06]} 43. Ka3 {[%clk 0:00:05]}  Be7+ {[%clk 0:00:06]} 44. Ka4 {[%clk 0:00:05]}  Qc5 {[%clk 0:00:06]} 45. Rb3 {[%clk 0:00:02]}  Qc4+ {[%clk 0:00:06]} 46. Ka5 {[%clk 0:00:01]}  Qc7+ {[%clk 0:00:05]} 47. Ka6 {[%clk 0:00:01]}  Qc6+ {[%clk 0:00:06]} 48. Kxa7 {[%clk 0:00:01]}  Bc5+ {[%clk 0:00:06]} 49. Kb8 {[%clk 0:00:02]}  Qd6+ {[%clk 0:00:06]} 50. Kb7 {[%clk 0:00:02]}  Qd5+ {[%clk 0:00:05]} 51. Kc8 {[%clk 0:00:01]}  Qc6+ {[%clk 0:00:05]} 52. Kb8 {[%clk 0:00:01]}  Bd6+ {[%clk 0:00:05]} 53. Ka7 {[%clk 0:00:02]}  Qc5+ {[%clk 0:00:05]} 54. Ka6 {[%clk 0:00:02]}  Bc7 {[%clk 0:00:05]} 55. Kb7 {[%clk 0:00:02]}  Qc4 {[%clk 0:00:05]} 56. Ka8 {[%clk 0:00:02]}  Bd6 {[%clk 0:00:05]} 57. Kb7 {[%clk 0:00:02]}  Kg5 {[%clk 0:00:05]} 58. Kb6 {[%clk 0:00:00]}  Kh4 {[%clk 0:00:06]} 0-1

[Event "January 2 Late 2024"]
[Site "https://www.chess.com"]
[Date "2024.01.02"]
[Round "4"]
[White "chucksterf10"]
[Black "Keller, Peter"]
[Result "1-0"]
[Board "183"]
[TimeControl "180+1"]
[BlackFideId "1272105"]
[WhiteElo "2443"]
[BlackElo "2212"]
[BlackTeam "GER"]
[WhiteClock "0:00:13"]
[BlackClock "0:00:18"]

1. Nc3 {[%clk 0:03:00]}  Nf6 {[%clk 0:02:43]} 2. Nf3 {[%clk 0:02:59]}  d5 {[%clk 0:02:42]} 3. d4 {[%clk 0:02:59]}  c5 {[%clk 0:02:37]} 4. dxc5 {[%clk 0:02:58]}  e6 {[%clk 0:02:34]} 5. e4 {[%clk 0:02:57]}  Nc6 {[%clk 0:02:04]} 6. exd5 {[%clk 0:02:45]}  exd5 {[%clk 0:02:05]} 7. Bg5 {[%clk 0:02:45]}  Be6 {[%clk 0:02:02]} 8. Nd4 {[%clk 0:02:37]}  Bxc5 {[%clk 0:01:59]} 9. Bb5 {[%clk 0:02:23]}  O-O {[%clk 0:01:45]} 10. Nxc6 {[%clk 0:02:10]}  bxc6 {[%clk 0:01:45]} 11. Bxc6 {[%clk 0:02:11]}  Bxf2+ {[%clk 0:01:15]} 12. Kxf2 {[%clk 0:01:07]}  Ng4+ {[%clk 0:01:15]} 13. Qxg4 {[%clk 0:01:07]}  Qb6+ {[%clk 0:01:16]} 14. Be3 {[%clk 0:01:07]}  Qxb2 {[%clk 0:01:13]} 15. Qd4 {[%clk 0:00:56]}  Rac8 {[%clk 0:01:11]} 16. Nxd5 {[%clk 0:00:45]}  Qxc2+ {[%clk 0:01:07]} 17. Qd2 {[%clk 0:00:45]}  Rxc6 {[%clk 0:01:00]} 18. Ne7+ {[%clk 0:00:43]}  Kh8 {[%clk 0:01:00]} 19. Nxc6 {[%clk 0:00:44]}  Qxc6 {[%clk 0:01:00]} 20. Rhc1 {[%clk 0:00:43]}  Qb5 {[%clk 0:00:58]} 21. Rc5 {[%clk 0:00:41]}  Qa4 {[%clk 0:00:57]} 22. Qd4 {[%clk 0:00:39]}  Qa3 {[%clk 0:00:56]} 23. Bh6 {[%clk 0:00:34]}  f6 {[%clk 0:00:55]} 24. Bf4 {[%clk 0:00:33]}  h6 {[%clk 0:00:45]} 25. Rc7 {[%clk 0:00:32]}  Bg4 {[%clk 0:00:40]} 26. Rxa7 {[%clk 0:00:28]}  Qe7 {[%clk 0:00:38]} 27. Rd7 {[%clk 0:00:28]}  Qe2+ {[%clk 0:00:38]} 28. Kg1 {[%clk 0:00:27]}  Re8 {[%clk 0:00:36]} 29. Bxh6 {[%clk 0:00:22]}  Re4 {[%clk 0:00:23]} 30. Bxg7+ {[%clk 0:00:21]}  Kg8 {[%clk 0:00:23]} 31. Qd2 {[%clk 0:00:16]}  Qc4 {[%clk 0:00:17]} 32. Bxf6 {[%clk 0:00:14]}  Re2 {[%clk 0:00:17]} 33. Qg5+ {[%clk 0:00:14]}  Kf8 {[%clk 0:00:17]} 34. Qg7+ {[%clk 0:00:13]}  Ke8 {[%clk 0:00:18]} 35. Rd8# {[%clk 0:00:13]} 1-0

[Event "January 2 Late 2024"]
[Site "https://www.chess.com"]
[Date "2024.01.02"]
[Round "4"]
[White "Hoeffer, David"]
[Black "uzkuzk"]
[Result "0-1"]
[Board "185"]
[TimeControl "180+1"]
[WhiteFideId "24606766"]
[WhiteElo "2434"]
[BlackElo "2174"]
[WhiteTeam "GER"]
[WhiteClock "0:00:04"]
[BlackClock "0:00:36"]

1. e4 {[%clk 0:03:00]}  e5 {[%clk 0:02:59]} 2. Nf3 {[%clk 0:03:00]}  f5 {[%clk 0:02:59]} 3. exf5 {[%clk 0:02:30]}  e4 {[%clk 0:02:57]} 4. Ne5 {[%clk 0:02:30]}  Nf6 {[%clk 0:02:57]} 5. g4 {[%clk 0:02:11]}  d6 {[%clk 0:02:41]} 6. Nc4 {[%clk 0:02:09]}  d5 {[%clk 0:02:36]} 7. Ne5 {[%clk 0:02:07]}  Bd6 {[%clk 0:02:34]} 8. d4 {[%clk 0:02:05]}  h5 {[%clk 0:02:25]} 9. g5 {[%clk 0:01:58]}  Ng4 {[%clk 0:02:23]} 10. Nxg4 {[%clk 0:01:55]}  hxg4 {[%clk 0:02:23]} 11. Qxg4 {[%clk 0:01:56]}  g6 {[%clk 0:02:18]} 12. h4 {[%clk 0:01:41]}  Bxf5 {[%clk 0:02:18]} 13. Qe2 {[%clk 0:01:37]}  Nc6 {[%clk 0:02:08]} 14. Be3 {[%clk 0:01:32]}  Qe7 {[%clk 0:02:02]} 15. Nd2 {[%clk 0:01:24]}  O-O-O {[%clk 0:01:57]} 16. O-O-O {[%clk 0:01:21]}  Rh5 {[%clk 0:01:47]} 17. Bh3 {[%clk 0:01:14]}  Qe6 {[%clk 0:01:41]} 18. Bxf5 {[%clk 0:01:12]}  Qxf5 {[%clk 0:01:41]} 19. Rdg1 {[%clk 0:01:07]}  Rdh8 {[%clk 0:01:38]} 20. Qg4 {[%clk 0:01:07]}  Ne7 {[%clk 0:01:34]} 21. c4 {[%clk 0:01:04]}  c6 {[%clk 0:01:32]} 22. Kc2 {[%clk 0:00:47]}  Qxg4 {[%clk 0:01:28]} 23. Rxg4 {[%clk 0:00:48]}  Nf5 {[%clk 0:01:29]} 24. Kc3 {[%clk 0:00:35]}  Nxh4 {[%clk 0:01:21]} 25. Bf4 {[%clk 0:00:26]}  Bxf4 {[%clk 0:01:08]} 26. Rxf4 {[%clk 0:00:27]}  Nf5 {[%clk 0:01:08]} 27. Rxh5 {[%clk 0:00:27]}  Rxh5 {[%clk 0:01:07]} 28. cxd5 {[%clk 0:00:25]}  cxd5 {[%clk 0:01:07]} 29. Nf1 {[%clk 0:00:20]}  Rxg5 {[%clk 0:01:05]} 30. f3 {[%clk 0:00:19]}  Rg1 {[%clk 0:00:58]} 31. fxe4 {[%clk 0:00:18]}  dxe4 {[%clk 0:00:58]} 32. Nd2 {[%clk 0:00:17]}  e3 {[%clk 0:00:57]} 33. Nf3 {[%clk 0:00:17]}  Rd1 {[%clk 0:00:53]} 34. Re4 {[%clk 0:00:16]}  Rf1 {[%clk 0:00:44]} 35. Ng5 {[%clk 0:00:15]}  Rf2 {[%clk 0:00:42]} 36. a4 {[%clk 0:00:14]}  e2 {[%clk 0:00:39]} 37. b4 {[%clk 0:00:15]}  Ng3 {[%clk 0:00:37]} 38. Re5 {[%clk 0:00:04]}  Rf1 {[%clk 0:00:36]} 0-1

[Event "January 2 Late 2024"]
[Site "https://www.chess.com"]
[Date "2024.01.02"]
[Round "4"]
[White "Salman, Ilhan Serhat"]
[Black "Porat, Tori"]
[Result "1-0"]
[Board "186"]
[TimeControl "180+1"]
[WhiteFideId "6361579"]
[BlackFideId "30982626"]
[WhiteElo "2434"]
[BlackElo "2173"]
[WhiteTeam "TUR"]
[BlackTeam "USA"]
[WhiteClock "0:01:11"]
[BlackClock "0:00:54"]

1. b3 {[%clk 0:02:57]}  d5 {[%clk 0:02:58]} 2. Bb2 {[%clk 0:02:56]}  c5 {[%clk 0:02:58]} 3. e3 {[%clk 0:02:57]}  Nc6 {[%clk 0:02:58]} 4. Nf3 {[%clk 0:02:57]}  Nf6 {[%clk 0:02:58]} 5. Bb5 {[%clk 0:02:57]}  e6 {[%clk 0:02:58]} 6. O-O {[%clk 0:02:56]}  Bd6 {[%clk 0:02:57]} 7. d4 {[%clk 0:02:55]}  O-O {[%clk 0:02:56]} 8. c4 {[%clk 0:02:54]}  a6 {[%clk 0:02:56]} 9. Bxc6 {[%clk 0:02:53]}  bxc6 {[%clk 0:02:56]} 10. Nc3 {[%clk 0:02:51]}  Qc7 {[%clk 0:02:48]} 11. h3 {[%clk 0:02:49]}  h6 {[%clk 0:02:46]} 12. Rc1 {[%clk 0:02:45]}  cxd4 {[%clk 0:02:42]} 13. Nxd4 {[%clk 0:02:38]}  e5 {[%clk 0:02:40]} 14. Nf3 {[%clk 0:02:35]}  e4 {[%clk 0:02:36]} 15. Nd4 {[%clk 0:02:29]}  Qd8 {[%clk 0:02:18]} 16. Nxc6 {[%clk 0:02:25]}  Qe8 {[%clk 0:02:12]} 17. cxd5 {[%clk 0:02:24]}  Bb7 {[%clk 0:02:08]} 18. Na4 {[%clk 0:02:11]}  Nd7 {[%clk 0:01:59]} 19. Qd4 {[%clk 0:02:04]}  f6 {[%clk 0:01:55]} 20. Rfd1 {[%clk 0:01:50]}  Ne5 {[%clk 0:01:43]} 21. Qxe4 {[%clk 0:01:40]}  Bxc6 {[%clk 0:01:40]} 22. dxc6 {[%clk 0:01:39]}  Bc7 {[%clk 0:01:30]} 23. Bxe5 {[%clk 0:01:16]}  Bxe5 {[%clk 0:01:24]} 24. Qc4+ {[%clk 0:01:15]}  Kh8 {[%clk 0:01:23]} 25. Nb6 {[%clk 0:01:15]}  Rd8 {[%clk 0:01:05]} 26. Rxd8 {[%clk 0:01:10]}  Qxd8 {[%clk 0:00:54]} 27. c7 {[%clk 0:01:11]} 1-0

[Event "January 2 Late 2024"]
[Site "https://www.chess.com"]
[Date "2024.01.02"]
[Round "4"]
[White "Urbina Perez, Juan Antonio"]
[Black "KSho99"]
[Result "1-0"]
[Board "187"]
[TimeControl "180+1"]
[WhiteFideId "2217368"]
[WhiteElo "2433"]
[BlackElo "2167"]
[WhiteTeam "ESP"]
[WhiteClock "0:00:45"]
[BlackClock "0:00:00"]

1. d4 {[%clk 0:02:57]}  e6 {[%clk 0:02:59]} 2. Nf3 {[%clk 0:02:57]}  f5 {[%clk 0:02:59]} 3. Nc3 {[%clk 0:02:54]}  Nf6 {[%clk 0:02:58]} 4. Bg5 {[%clk 0:02:54]}  Be7 {[%clk 0:02:55]} 5. Bxf6 {[%clk 0:02:53]}  Bxf6 {[%clk 0:02:54]} 6. e4 {[%clk 0:02:54]}  d5 {[%clk 0:02:52]} 7. exd5 {[%clk 0:02:47]}  exd5 {[%clk 0:02:52]} 8. Qd2 {[%clk 0:02:46]}  O-O {[%clk 0:02:46]} 9. O-O-O {[%clk 0:02:46]}  c6 {[%clk 0:02:37]} 10. Kb1 {[%clk 0:02:43]}  b5 {[%clk 0:02:36]} 11. Bd3 {[%clk 0:02:40]}  a5 {[%clk 0:02:29]} 12. h4 {[%clk 0:02:39]}  a4 {[%clk 0:02:20]} 13. Ne2 {[%clk 0:02:40]}  Qd6 {[%clk 0:01:55]} 14. Nf4 {[%clk 0:02:30]}  b4 {[%clk 0:01:45]} 15. Nh5 {[%clk 0:02:28]}  b3 {[%clk 0:01:37]} 16. Nxf6+ {[%clk 0:02:26]}  Rxf6 {[%clk 0:01:32]} 17. Rhe1 {[%clk 0:02:17]}  Rf8 {[%clk 0:01:18]} 18. c4 {[%clk 0:02:02]}  bxa2+ {[%clk 0:01:10]} 19. Kxa2 {[%clk 0:01:57]}  Ba6 {[%clk 0:00:42]} 20. c5 {[%clk 0:01:53]}  Qc7 {[%clk 0:00:40]} 21. Ne5 {[%clk 0:01:54]}  Qb7 {[%clk 0:00:28]} 22. Qc3 {[%clk 0:01:47]}  Bxd3 {[%clk 0:00:27]} 23. Rxd3 {[%clk 0:01:47]}  Na6 {[%clk 0:00:26]} 24. Rg3 {[%clk 0:01:35]}  Rfb8 {[%clk 0:00:16]} 25. Re2 {[%clk 0:01:30]}  a3 {[%clk 0:00:11]} 26. b3 {[%clk 0:01:27]}  Nb4+ {[%clk 0:00:10]} 27. Ka1 {[%clk 0:01:26]}  Qb5 {[%clk 0:00:05]} 28. Qe3 {[%clk 0:01:14]}  Ra7 {[%clk 0:00:04]} 29. h5 {[%clk 0:01:02]}  a2 {[%clk 0:00:03]} 30. h6 {[%clk 0:00:57]}  g6 {[%clk 0:00:03]} 31. Nxg6 {[%clk 0:00:47]}  hxg6 {[%clk 0:00:03]} 32. Qe6+ {[%clk 0:00:47]}  Kh7 {[%clk 0:00:02]} 33. Qxg6+ {[%clk 0:00:45]}  Kh8 {[%clk 0:00:02]} 34. Qf6+ {[%clk 0:00:45]}  Kh7 {[%clk 0:00:00]} 35. Rg7+ {[%clk 0:00:45]} 1-0

[Event "January 2 Late 2024"]
[Site "https://www.chess.com"]
[Date "2024.01.02"]
[Round "4"]
[White "Kovacevic, Radmila"]
[Black "Spichkin, Alexander"]
[Result "1-0"]
[Board "188"]
[TimeControl "180+1"]
[WhiteFideId "933171"]
[BlackFideId "4144074"]
[WhiteElo "2164"]
[BlackElo "2431"]
[WhiteTeam "SRB"]
[BlackTeam "RUS"]
[WhiteClock "0:00:16"]
[BlackClock "0:01:32"]

1. e4 {[%clk 0:03:00]}  e5 {[%clk 0:02:58]} 2. d4 {[%clk 0:03:00]}  exd4 {[%clk 0:02:57]} 3. Qxd4 {[%clk 0:03:01]}  Nc6 {[%clk 0:02:58]} 4. Qe3 {[%clk 0:03:01]}  Nf6 {[%clk 0:02:56]} 5. Bd2 {[%clk 0:03:02]}  Qe7 {[%clk 0:02:56]} 6. Nc3 {[%clk 0:02:57]}  g6 {[%clk 0:02:54]} 7. O-O-O {[%clk 0:02:56]}  Bg7 {[%clk 0:02:53]} 8. h3 {[%clk 0:02:55]}  O-O {[%clk 0:02:53]} 9. g4 {[%clk 0:02:50]}  b6 {[%clk 0:02:44]} 10. f4 {[%clk 0:02:44]}  Bb7 {[%clk 0:02:43]} 11. e5 {[%clk 0:02:43]}  Ne8 {[%clk 0:02:42]} 12. Rh2 {[%clk 0:02:41]}  Qc5 {[%clk 0:02:40]} 13. Qg3 {[%clk 0:02:24]}  g5 {[%clk 0:02:38]} 14. Ne4 {[%clk 0:02:14]}  gxf4 {[%clk 0:02:38]} 15. Bxf4 {[%clk 0:02:09]}  Qa5 {[%clk 0:02:36]} 16. a3 {[%clk 0:01:44]}  Nxe5 {[%clk 0:02:36]} 17. Ng5 {[%clk 0:01:41]}  Ng6 {[%clk 0:02:27]} 18. Bd3 {[%clk 0:01:28]}  Nxf4 {[%clk 0:02:20]} 19. Bxh7+ {[%clk 0:01:26]}  Kh8 {[%clk 0:02:20]} 20. Qh4 {[%clk 0:01:17]}  Qxg5 {[%clk 0:02:07]} 21. Qxg5 {[%clk 0:01:15]}  Kxh7 {[%clk 0:02:07]} 22. Qxf4 {[%clk 0:01:15]}  f6 {[%clk 0:02:03]} 23. Qf5+ {[%clk 0:01:12]}  Kg8 {[%clk 0:02:03]} 24. Rxd7 {[%clk 0:01:11]}  Nd6 {[%clk 0:02:03]} 25. Qe6+ {[%clk 0:01:10]}  Kh8 {[%clk 0:02:02]} 26. Rxc7 {[%clk 0:01:08]}  Rad8 {[%clk 0:01:57]} 27. Qe1 {[%clk 0:00:55]}  Rfe8 {[%clk 0:01:49]} 28. Re2 {[%clk 0:00:53]}  Be4 {[%clk 0:01:47]} 29. Qh4+ {[%clk 0:00:34]}  Kg8 {[%clk 0:01:47]} 30. g5 {[%clk 0:00:30]}  Nf5 {[%clk 0:01:41]} 31. Qh5 {[%clk 0:00:23]}  fxg5 {[%clk 0:01:40]} 32. Qf7+ {[%clk 0:00:22]}  Kh8 {[%clk 0:01:40]} 33. Nf3 {[%clk 0:00:18]}  Rf8 {[%clk 0:01:37]} 34. Qh5+ {[%clk 0:00:17]}  Kg8 {[%clk 0:01:35]} 35. Rxe4 {[%clk 0:00:17]}  Nd6 {[%clk 0:01:34]} 36. Nxg5 {[%clk 0:00:17]}  Nxe4 {[%clk 0:01:32]} 37. Qh7# {[%clk 0:00:16]} 1-0

[Event "January 2 Late 2024"]
[Site "https://www.chess.com"]
[Date "2024.01.02"]
[Round "4"]
[White "Clarke, Matthew"]
[Black "Federzoni, Enzo"]
[Result "0-1"]
[Board "190"]
[TimeControl "180+1"]
[WhiteFideId "3227804"]
[BlackFideId "2173301"]
[WhiteElo "2139"]
[BlackElo "2426"]
[WhiteTeam "AUS"]
[BlackTeam "BRA"]
[WhiteClock "0:00:00"]
[BlackClock "0:01:20"]

1. d4 {[%clk 0:03:00]}  Nf6 {[%clk 0:02:59]} 2. c4 {[%clk 0:03:01]}  e6 {[%clk 0:02:59]} 3. g3 {[%clk 0:03:01]}  d5 {[%clk 0:03:00]} 4. Bg2 {[%clk 0:03:02]}  dxc4 {[%clk 0:02:58]} 5. Nf3 {[%clk 0:03:02]}  Be7 {[%clk 0:02:56]} 6. O-O {[%clk 0:03:00]}  O-O {[%clk 0:02:57]} 7. Qc2 {[%clk 0:02:53]}  c6 {[%clk 0:02:57]} 8. a4 {[%clk 0:02:43]}  a5 {[%clk 0:02:46]} 9. Qxc4 {[%clk 0:02:31]}  Na6 {[%clk 0:02:46]} 10. Nc3 {[%clk 0:02:16]}  Nb4 {[%clk 0:02:45]} 11. Qb3 {[%clk 0:01:50]}  b6 {[%clk 0:02:41]} 12. e4 {[%clk 0:01:45]}  Ba6 {[%clk 0:02:38]} 13. Rd1 {[%clk 0:01:45]}  Rc8 {[%clk 0:02:32]} 14. Be3 {[%clk 0:01:40]}  Ng4 {[%clk 0:02:10]} 15. Bf4 {[%clk 0:01:40]}  g5 {[%clk 0:02:09]} 16. Bd2 {[%clk 0:01:31]}  Nd3 {[%clk 0:02:03]} 17. Bf1 {[%clk 0:01:21]}  c5 {[%clk 0:02:03]} 18. Bxd3 {[%clk 0:00:47]}  Bxd3 {[%clk 0:02:03]} 19. h3 {[%clk 0:00:34]}  cxd4 {[%clk 0:01:59]} 20. hxg4 {[%clk 0:00:27]}  dxc3 {[%clk 0:01:58]} 21. Bxc3 {[%clk 0:00:28]}  Bc4 {[%clk 0:01:54]} 22. Qc2 {[%clk 0:00:21]}  Qc7 {[%clk 0:01:53]} 23. Rac1 {[%clk 0:00:06]}  Rfd8 {[%clk 0:01:53]} 24. Rxd8+ {[%clk 0:00:06]}  Qxd8 {[%clk 0:01:46]} 25. Bd4 {[%clk 0:00:03]}  Ba6 {[%clk 0:01:42]} 26. Qd2 {[%clk 0:00:04]}  Rxc1+ {[%clk 0:01:23]} 27. Qxc1 {[%clk 0:00:05]}  h6 {[%clk 0:01:24]} 28. b3 {[%clk 0:00:05]}  Be2 {[%clk 0:01:22]} 29. Bb2 {[%clk 0:00:01]}  Bxf3 {[%clk 0:01:21]} 30. Qc3 {[%clk 0:00:00]}  Qd1+ {[%clk 0:01:20]} 0-1

[Event "January 2 Late 2024"]
[Site "https://www.chess.com"]
[Date "2024.01.02"]
[Round "4"]
[White "Vlassov, Nikolai"]
[Black "Kaganskiy, Gleb"]
[Result "1-0"]
[Board "195"]
[TimeControl "180+1"]
[WhiteFideId "4103360"]
[BlackFideId "4132025"]
[WhiteElo "2639"]
[BlackElo "2266"]
[WhiteTeam "FID"]
[BlackTeam "ISR"]
[WhiteClock "0:00:44"]
[BlackClock "0:00:08"]

1. e4 {[%clk 0:03:00]}  Nc6 {[%clk 0:02:52]} 2. d4 {[%clk 0:02:58]}  d5 {[%clk 0:02:49]} 3. Nc3 {[%clk 0:02:57]}  dxe4 {[%clk 0:02:41]} 4. d5 {[%clk 0:02:57]}  Ne5 {[%clk 0:02:38]} 5. Bf4 {[%clk 0:02:56]}  Ng6 {[%clk 0:02:37]} 6. Bg3 {[%clk 0:02:56]}  e6 {[%clk 0:02:34]} 7. dxe6 {[%clk 0:02:40]}  Bxe6 {[%clk 0:02:33]} 8. Nb5 {[%clk 0:02:39]}  Bb4+ {[%clk 0:02:08]} 9. c3 {[%clk 0:02:39]}  Ba5 {[%clk 0:02:08]} 10. Qa4 {[%clk 0:02:38]}  c6 {[%clk 0:02:05]} 11. Nd6+ {[%clk 0:02:38]}  Kf8 {[%clk 0:02:03]} 12. Nxb7 {[%clk 0:02:37]}  Qb6 {[%clk 0:01:37]} 13. Nxa5 {[%clk 0:02:33]}  Qxb2 {[%clk 0:01:36]} 14. Qb4+ {[%clk 0:02:33]}  Qxb4 {[%clk 0:01:36]} 15. cxb4 {[%clk 0:02:34]}  Bd5 {[%clk 0:01:32]} 16. Ne2 {[%clk 0:02:27]}  Nf6 {[%clk 0:01:31]} 17. Nc3 {[%clk 0:02:21]}  h5 {[%clk 0:01:28]} 18. Ba6 {[%clk 0:02:15]}  h4 {[%clk 0:01:27]} 19. Bd6+ {[%clk 0:02:15]}  Kg8 {[%clk 0:01:26]} 20. O-O {[%clk 0:02:15]}  h3 {[%clk 0:01:25]} 21. gxh3 {[%clk 0:02:11]}  Rxh3 {[%clk 0:01:24]} 22. Bg3 {[%clk 0:02:10]}  Nh4 {[%clk 0:01:22]} 23. Nxd5 {[%clk 0:01:58]}  cxd5 {[%clk 0:01:09]} 24. Rfc1 {[%clk 0:01:48]}  Nf3+ {[%clk 0:00:52]} 25. Kg2 {[%clk 0:01:47]}  Rh5 {[%clk 0:00:52]} 26. Bb7 {[%clk 0:01:40]}  Rd8 {[%clk 0:00:50]} 27. Nc6 {[%clk 0:01:35]}  Re8 {[%clk 0:00:48]} 28. Nxa7 {[%clk 0:01:32]}  d4 {[%clk 0:00:48]} 29. Bxe4 {[%clk 0:01:25]}  Nh4+ {[%clk 0:00:27]} 30. Bxh4 {[%clk 0:01:22]}  Rxh4 {[%clk 0:00:28]} 31. Bf3 {[%clk 0:01:23]}  Nh5 {[%clk 0:00:18]} 32. Rc8 {[%clk 0:01:21]}  Rxc8 {[%clk 0:00:17]} 33. Nxc8 {[%clk 0:01:20]}  Nf4+ {[%clk 0:00:18]} 34. Kg3 {[%clk 0:01:20]}  g5 {[%clk 0:00:19]} 35. Bg4 {[%clk 0:01:17]}  d3 {[%clk 0:00:14]} 36. b5 {[%clk 0:01:14]}  d2 {[%clk 0:00:13]} 37. b6 {[%clk 0:01:13]}  f5 {[%clk 0:00:13]} 38. Ne7+ {[%clk 0:01:12]}  Kf7 {[%clk 0:00:11]} 39. Nxf5 {[%clk 0:01:12]}  Rh8 {[%clk 0:00:11]} 40. Nd6+ {[%clk 0:01:00]}  Kf6 {[%clk 0:00:10]} 41. Ne4+ {[%clk 0:00:55]}  Kg6 {[%clk 0:00:09]} 42. Nxd2 {[%clk 0:00:55]}  Rh3+ {[%clk 0:00:08]} 43. Bxh3 {[%clk 0:00:54]}  Ne2+ {[%clk 0:00:09]} 44. Kf3 {[%clk 0:00:50]}  g4+ {[%clk 0:00:09]} 45. Bxg4 {[%clk 0:00:49]}  Nd4+ {[%clk 0:00:08]} 46. Ke4 {[%clk 0:00:50]}  Nc6 {[%clk 0:00:09]} 47. b7 {[%clk 0:00:47]}  Nb8 {[%clk 0:00:08]} 48. Rc1 {[%clk 0:00:44]} 1-0

[Event "January 2 Late 2024"]
[Site "https://www.chess.com"]
[Date "2024.01.02"]
[Round "4"]
[White "Zavgorodniy, Sergiy"]
[Black "Sarkar, Justin"]
[Result "1/2-1/2"]
[Board "196"]
[TimeControl "180+1"]
[WhiteFideId "14110148"]
[BlackFideId "2010011"]
[WhiteElo "2599"]
[BlackElo "2260"]
[WhiteTeam "UKR"]
[BlackTeam "USA"]
[WhiteClock "0:01:24"]
[BlackClock "0:00:02"]

1. d4 {[%clk 0:02:57]}  Nf6 {[%clk 0:02:41]} 2. c4 {[%clk 0:02:57]}  g6 {[%clk 0:02:40]} 3. Nc3 {[%clk 0:02:57]}  Bg7 {[%clk 0:02:40]} 4. e4 {[%clk 0:02:57]}  d6 {[%clk 0:02:40]} 5. Be2 {[%clk 0:02:57]}  O-O {[%clk 0:02:39]} 6. Nf3 {[%clk 0:02:58]}  e5 {[%clk 0:02:37]} 7. O-O {[%clk 0:02:58]}  Nbd7 {[%clk 0:02:37]} 8. Qc2 {[%clk 0:02:57]}  Nh5 {[%clk 0:02:31]} 9. d5 {[%clk 0:02:55]}  Nf4 {[%clk 0:02:24]} 10. Re1 {[%clk 0:02:43]}  Nxe2+ {[%clk 0:02:20]} 11. Qxe2 {[%clk 0:02:43]}  f5 {[%clk 0:02:13]} 12. Ng5 {[%clk 0:02:42]}  Nf6 {[%clk 0:02:10]} 13. exf5 {[%clk 0:02:40]}  gxf5 {[%clk 0:02:09]} 14. Ne6 {[%clk 0:02:36]}  Bxe6 {[%clk 0:02:05]} 15. dxe6 {[%clk 0:02:37]}  c6 {[%clk 0:01:57]} 16. Qf3 {[%clk 0:02:26]}  Qe7 {[%clk 0:01:43]} 17. Qxf5 {[%clk 0:02:25]}  Rae8 {[%clk 0:01:39]} 18. Bg5 {[%clk 0:02:25]}  Qxe6 {[%clk 0:01:36]} 19. Qxe6+ {[%clk 0:02:25]}  Rxe6 {[%clk 0:01:36]} 20. Rad1 {[%clk 0:02:26]}  e4 {[%clk 0:01:00]} 21. Bxf6 {[%clk 0:02:22]}  Bxf6 {[%clk 0:00:58]} 22. Rxe4 {[%clk 0:02:15]}  Rxe4 {[%clk 0:00:50]} 23. Nxe4 {[%clk 0:02:16]}  Bxb2 {[%clk 0:00:50]} 24. Rxd6 {[%clk 0:02:15]}  Be5 {[%clk 0:00:34]} 25. Rd7 {[%clk 0:02:12]}  Rf7 {[%clk 0:00:33]} 26. Rxf7 {[%clk 0:02:12]}  Kxf7 {[%clk 0:00:33]} 27. Kf1 {[%clk 0:02:12]}  b5 {[%clk 0:00:30]} 28. cxb5 {[%clk 0:02:09]}  cxb5 {[%clk 0:00:30]} 29. Ke2 {[%clk 0:02:08]}  a5 {[%clk 0:00:25]} 30. g3 {[%clk 0:02:07]}  b4 {[%clk 0:00:15]} 31. Kd3 {[%clk 0:02:06]}  a4 {[%clk 0:00:13]} 32. Kc2 {[%clk 0:01:58]}  Bd4 {[%clk 0:00:13]} 33. f4 {[%clk 0:01:56]}  h5 {[%clk 0:00:09]} 34. h3 {[%clk 0:01:50]}  Ke6 {[%clk 0:00:06]} 35. g4 {[%clk 0:01:50]}  hxg4 {[%clk 0:00:05]} 36. hxg4 {[%clk 0:01:51]}  Be3 {[%clk 0:00:05]} 37. f5+ {[%clk 0:01:48]}  Ke5 {[%clk 0:00:05]} 38. Nd2 {[%clk 0:01:44]}  Kf4 {[%clk 0:00:02]} 39. Nc4 {[%clk 0:01:42]}  Bc5 {[%clk 0:00:01]} 40. f6 {[%clk 0:01:40]}  Kxg4 {[%clk 0:00:01]} 41. Ne5+ {[%clk 0:01:36]}  Kf5 {[%clk 0:00:01]} 42. Nd7 {[%clk 0:01:36]}  Bd6 {[%clk 0:00:01]} 43. f7 {[%clk 0:01:35]}  Ke6 {[%clk 0:00:01]} 44. f8=Q {[%clk 0:01:35]}  Bxf8 {[%clk 0:00:01]} 45. Nxf8+ {[%clk 0:01:36]}  Kf7 {[%clk 0:00:02]} 46. Kd3 {[%clk 0:01:24]}  b3 {[%clk 0:00:02]} 47. axb3 {[%clk 0:01:24]}  axb3 {[%clk 0:00:02]} 48. Kc3 {[%clk 0:01:24]}  Kxf8 {[%clk 0:00:02]} 49. Kxb3 {[%clk 0:01:24]} 1/2-1/2